[Event "*** Titled Tuesday Blitz"]
[Site "Chess.com"]
[Date "2019.12.03"]
[Round "3"]
[White "2nd_life"]
[Black "Misticpikachu"]
[Result "1-0"]
[WhiteElo "2477"]
[BlackElo "2289"]
[TimeControl "180+2"]
[EndTime "13:36:15 PST"]
[Termination "2nd_life won by resignation"]

1. e4 {[%clk 0:03:01.9]} 1... c5 {[%clk 0:03:00.9]} 2. Nf3 {[%clk 0:03:02.4]}
2... Nc6 {[%clk 0:03:02.2]} 3. Bb5 {[%clk 0:03:02.5]} 3... e6 {[%clk 0:03:03]}
4. Bxc6 {[%clk 0:03:03.2]} 4... bxc6 {[%clk 0:03:04.9]} 5. b3 {[%clk 0:03:02.1]}
5... Ne7 {[%clk 0:03:05.4]} 6. Bb2 {[%clk 0:03:02.2]} 6... Ng6 {[%clk
0:03:06.7]} 7. O-O {[%clk 0:03:01.7]} 7... d6 {[%clk 0:03:06.8]} 8. c3 {[%clk
0:03:00.3]} 8... e5 {[%clk 0:03:06.9]} 9. d4 {[%clk 0:03:00.7]} 9... cxd4 {[%clk
0:03:04.3]} 10. cxd4 {[%clk 0:03:01.6]} 10... Bg4 {[%clk 0:02:29]} 11. dxe5
{[%clk 0:02:54.2]} 11... Nxe5 {[%clk 0:02:28.4]} 12. Nbd2 {[%clk 0:02:02.8]}
12... Be7 {[%clk 0:02:14.7]} 13. Bxe5 {[%clk 0:02:02.8]} 13... dxe5 {[%clk
0:02:13.6]} 14. Qc2 {[%clk 0:02:04]} 14... Qd6 {[%clk 0:01:37.8]} 15. Nc4 {[%clk
0:01:59.6]} 15... Qc5 {[%clk 0:01:32.5]} 16. Nfxe5 {[%clk 0:01:56.3]} 16... Be6
{[%clk 0:01:21.5]} 17. Rad1 {[%clk 0:01:35.4]} 17... O-O {[%clk 0:01:21.7]} 18.
Nd7 {[%clk 0:01:35.7]} 18... Bxd7 {[%clk 0:01:22.3]} 19. Rxd7 {[%clk 0:01:36.7]}
19... Rfd8 {[%clk 0:01:16]} 20. Rfd1 {[%clk 0:01:36.9]} 20... Rxd7 {[%clk
0:01:15.2]} 21. Rxd7 {[%clk 0:01:38.8]} 21... Rd8 {[%clk 0:01:16.7]} 22. Rxd8+
{[%clk 0:01:38.5]} 22... Bxd8 {[%clk 0:01:18.6]} 23. Qd3 {[%clk 0:01:38.6]}
23... Bb6 {[%clk 0:01:04.4]} 24. Nxb6 {[%clk 0:01:31.4]} 24... Qxb6 {[%clk
0:01:06.3]} 25. g3 {[%clk 0:01:27.5]} 25... g6 {[%clk 0:01:06.4]} 26. h4 {[%clk
0:01:25.7]} 26... h5 {[%clk 0:01:06.5]} 27. e5 {[%clk 0:01:25.6]} 27... c5
{[%clk 0:00:57.4]} 28. Qd5 {[%clk 0:01:20]} 28... Kg7 {[%clk 0:00:56.4]} 29. Kg2
{[%clk 0:01:20.5]} 29... Qb4 {[%clk 0:00:49.4]} 30. e6 {[%clk 0:01:19.7]} 30...
fxe6 {[%clk 0:00:48.1]} 31. Qxe6 {[%clk 0:01:20.6]} 31... Qb7+ {[%clk
0:00:49.3]} 32. Kh2 {[%clk 0:01:21.3]} 32... Qf3 {[%clk 0:00:48.3]} 33. Qe5+
{[%clk 0:01:22.1]} 33... Kh6 {[%clk 0:00:43.7]} 34. Qxc5 {[%clk 0:01:23.1]}
34... a5 {[%clk 0:00:40.6]} 35. Qe3+ {[%clk 0:01:22.5]} 1-0

[Event "*** Titled Tuesday Blitz"]
[Site "Chess.com"]
[Date "2019.12.03"]
[Round "3"]
[White "Frolik67"]
[Black "MatthewG-p4p"]
[Result "0-1"]
[WhiteElo "2546"]
[BlackElo "2766"]
[TimeControl "180+2"]
[EndTime "13:36:26 PST"]
[Termination "MatthewG-p4p won by checkmate"]

1. e4 {[%clk 0:03:01.9]} 1... e6 {[%clk 0:02:58]} 2. d4 {[%clk 0:03:00.8]} 2...
d5 {[%clk 0:02:57.6]} 3. exd5 {[%clk 0:03:01.5]} 3... exd5 {[%clk 0:02:59.5]} 4.
Nf3 {[%clk 0:02:59.4]} 4... Nf6 {[%clk 0:03:00.8]} 5. Bd3 {[%clk 0:03:00.3]}
5... c5 {[%clk 0:03:01.8]} 6. c3 {[%clk 0:03:00.8]} 6... Nc6 {[%clk 0:03:03]} 7.
O-O {[%clk 0:03:01.4]} 7... Be7 {[%clk 0:03:04.3]} 8. Bf4 {[%clk 0:03:00.4]}
8... O-O {[%clk 0:03:05.2]} 9. Nbd2 {[%clk 0:03:00]} 9... Bg4 {[%clk 0:03:01.4]}
10. h3 {[%clk 0:02:59.4]} 10... Bh5 {[%clk 0:03:02.5]} 11. dxc5 {[%clk
0:02:59.4]} 11... Bxc5 {[%clk 0:03:04.4]} 12. Nb3 {[%clk 0:02:55.6]} 12... Bb6
{[%clk 0:03:05.7]} 13. Be2 {[%clk 0:02:50.8]} 13... Re8 {[%clk 0:03:05.5]} 14.
Re1 {[%clk 0:02:47.7]} 14... Ne4 {[%clk 0:03:05.9]} 15. Nfd4 {[%clk 0:02:46.5]}
15... Bg6 {[%clk 0:03:01.1]} 16. Bf3 {[%clk 0:02:41.1]} 16... Qf6 {[%clk
0:03:01.1]} 17. Be3 {[%clk 0:02:39.7]} 17... Rad8 {[%clk 0:03:01.3]} 18. Qe2
{[%clk 0:02:12.3]} 18... Ne5 {[%clk 0:03:00.4]} 19. Rad1 {[%clk 0:02:12.1]}
19... Nc4 {[%clk 0:02:58]} 20. Nc1 {[%clk 0:01:31.5]} 20... h6 {[%clk
0:02:54.4]} 21. Nd3 {[%clk 0:01:21.2]} 21... Kh7 {[%clk 0:02:44.7]} 22. Qf1
{[%clk 0:01:20.8]} 22... Nxe3 {[%clk 0:02:43.7]} 23. fxe3 {[%clk 0:01:15.1]}
23... Bc7 {[%clk 0:02:35.4]} 24. Nf2 {[%clk 0:01:04.6]} 24... Qd6 {[%clk
0:02:12.2]} 25. Ng4 {[%clk 0:00:48.2]} 25... a6 {[%clk 0:02:13.1]} 26. Bxe4
{[%clk 0:00:46]} 26... Rxe4 {[%clk 0:02:12.8]} 27. Nf5 {[%clk 0:00:41.2]} 27...
Qb6 {[%clk 0:02:06.8]} 28. Nd4 {[%clk 0:00:32.7]} 28... Rde8 {[%clk 0:02:06.1]}
29. Qf3 {[%clk 0:00:28.4]} 29... Qxb2 {[%clk 0:01:59.6]} 30. Re2 {[%clk
0:00:24.9]} 30... Qxc3 {[%clk 0:01:47.8]} 31. Rc2 {[%clk 0:00:25.9]} 31... Qa5
{[%clk 0:01:48.9]} 32. Rb1 {[%clk 0:00:26.3]} 32... Rxd4 {[%clk 0:01:47.1]} 33.
exd4 {[%clk 0:00:26.1]} 33... Bxc2 {[%clk 0:01:47.8]} 34. Qxf7 {[%clk
0:00:25.1]} 34... Re1+ {[%clk 0:01:41.3]} 35. Kf2 {[%clk 0:00:24.8]} 35... Qd2+
{[%clk 0:01:40.5]} 36. Kf3 {[%clk 0:00:26.3]} 36... Be4# {[%clk 0:01:41.1]} 0-1

[Event "*** Titled Tuesday Blitz"]
[Site "Chess.com"]
[Date "2019.12.03"]
[Round "3"]
[White "Perecke"]
[Black "Kislov_Oleg"]
[Result "1-0"]
[WhiteElo "2155"]
[BlackElo "2507"]
[TimeControl "180+2"]
[EndTime "13:36:27 PST"]
[Termination "Perecke won by checkmate"]

1. e4 {[%clk 0:03:01.9]} 1... e6 {[%clk 0:03:00.5]} 2. d4 {[%clk 0:03:00.1]}
2... d5 {[%clk 0:03:01.5]} 3. Nc3 {[%clk 0:03:00.1]} 3... Nf6 {[%clk 0:03:00.7]}
4. e5 {[%clk 0:03:01.2]} 4... Nfd7 {[%clk 0:03:00]} 5. Nce2 {[%clk 0:03:02.8]}
5... c5 {[%clk 0:03:00.7]} 6. c3 {[%clk 0:03:03.6]} 6... Nc6 {[%clk 0:03:01.4]}
7. f4 {[%clk 0:03:05.2]} 7... Qb6 {[%clk 0:02:59.7]} 8. Nf3 {[%clk 0:03:06.1]}
8... Be7 {[%clk 0:02:54]} 9. g3 {[%clk 0:03:06.5]} 9... cxd4 {[%clk 0:02:46.6]}
10. cxd4 {[%clk 0:03:02.9]} 10... Bb4+ {[%clk 0:02:47.1]} 11. Bd2 {[%clk
0:03:01.8]} 11... O-O {[%clk 0:02:40.1]} 12. Bh3 {[%clk 0:03:00.3]} 12... a5
{[%clk 0:02:37.5]} 13. O-O {[%clk 0:02:59.4]} 13... g6 {[%clk 0:02:19.7]} 14. a3
{[%clk 0:02:58.5]} 14... Be7 {[%clk 0:02:16.1]} 15. g4 {[%clk 0:02:56]} 15...
Qxb2 {[%clk 0:02:09.4]} 16. f5 {[%clk 0:02:51.3]} 16... exf5 {[%clk 0:02:01.3]}
17. gxf5 {[%clk 0:02:51.3]} 17... gxf5 {[%clk 0:01:59.7]} 18. Bxf5 {[%clk
0:02:45.2]} 18... Kh8 {[%clk 0:01:33.6]} 19. Kh1 {[%clk 0:02:44.9]} 19... Rg8
{[%clk 0:01:30.4]} 20. Bh6 {[%clk 0:02:24.1]} 20... Nf8 {[%clk 0:01:22.2]} 21.
Bxc8 {[%clk 0:02:02.8]} 21... Rxc8 {[%clk 0:01:21.2]} 22. Nf4 {[%clk 0:02:04.7]}
22... Ne6 {[%clk 0:00:50.5]} 23. Rb1 {[%clk 0:02:02.1]} 23... Qa2 {[%clk
0:00:45.4]} 24. Ra1 {[%clk 0:01:56.8]} 24... Qc4 {[%clk 0:00:43.5]} 25. Rc1
{[%clk 0:01:53.5]} 25... Qa2 {[%clk 0:00:36.3]} 26. Ra1 {[%clk 0:01:53.6]} 26...
Qb2 {[%clk 0:00:36.8]} 27. Rb1 {[%clk 0:01:54]} 27... Qxa3 {[%clk 0:00:37.4]}
28. Nxd5 {[%clk 0:01:52.6]} 28... Qa2 {[%clk 0:00:32.6]} 29. Ne3 {[%clk
0:01:49.9]} 29... Ncxd4 {[%clk 0:00:26.4]} 30. Nxd4 {[%clk 0:01:45.4]} 30...
Rcd8 {[%clk 0:00:25.5]} 31. Qc2 {[%clk 0:01:32.5]} 31... Qa3 {[%clk 0:00:13]}
32. Nxe6 {[%clk 0:01:26.6]} 32... fxe6 {[%clk 0:00:14.3]} 33. Rxb7 {[%clk
0:01:24.3]} 33... Bb4 {[%clk 0:00:12.9]} 34. Qxh7# {[%clk 0:01:24.3]} 1-0

[Event "*** Titled Tuesday Blitz"]
[Site "Chess.com"]
[Date "2019.12.03"]
[Round "3"]
[White "Denis_Palkovich"]
[Black "JosefineHeinemann"]
[Result "1-0"]
[WhiteElo "2237"]
[BlackElo "2398"]
[TimeControl "180+2"]
[EndTime "13:36:35 PST"]
[Termination "Denis_Palkovich won by checkmate"]

1. d4 {[%clk 0:03:01.9]} 1... Nf6 {[%clk 0:02:59.8]} 2. Bf4 {[%clk 0:03:02.5]}
2... d5 {[%clk 0:02:58.1]} 3. e3 {[%clk 0:03:03.7]} 3... c5 {[%clk 0:02:59.3]}
4. c3 {[%clk 0:03:04.1]} 4... Nc6 {[%clk 0:02:59.8]} 5. Nd2 {[%clk 0:03:03.8]}
5... Bf5 {[%clk 0:02:56.7]} 6. Ngf3 {[%clk 0:03:00.7]} 6... e6 {[%clk
0:02:56.4]} 7. Qb3 {[%clk 0:03:00]} 7... Qd7 {[%clk 0:02:56.8]} 8. Bb5 {[%clk
0:02:59.5]} 8... c4 {[%clk 0:02:49.7]} 9. Qa4 {[%clk 0:02:59.3]} 9... Bd6 {[%clk
0:02:39.4]} 10. Ne5 {[%clk 0:02:54.1]} 10... Bxe5 {[%clk 0:02:40]} 11. Bxe5
{[%clk 0:02:48.9]} 11... a6 {[%clk 0:02:40.1]} 12. Nf3 {[%clk 0:02:20.7]} 12...
O-O {[%clk 0:02:34.3]} 13. Bxc6 {[%clk 0:02:18.4]} 13... Qxc6 {[%clk 0:02:36.2]}
14. Qxc6 {[%clk 0:02:13.4]} 14... bxc6 {[%clk 0:02:31.1]} 15. Nd2 {[%clk
0:01:01.2]} 15... Ra7 {[%clk 0:02:29.5]} 16. b3 {[%clk 0:00:56.3]} 16... cxb3
{[%clk 0:02:30.5]} 17. axb3 {[%clk 0:00:53.2]} 17... Rfa8 {[%clk 0:02:31.5]} 18.
Ra5 {[%clk 0:00:52.8]} 18... Rb7 {[%clk 0:02:31.3]} 19. Ke2 {[%clk 0:00:50.7]}
19... Rb5 {[%clk 0:02:32.4]} 20. Rha1 {[%clk 0:00:51.1]} 20... Ne4 {[%clk
0:02:30.9]} 21. Nxe4 {[%clk 0:00:51.9]} 21... Bxe4 {[%clk 0:02:32.8]} 22. f3
{[%clk 0:00:50.7]} 22... Rxa5 {[%clk 0:02:30.1]} 23. Rxa5 {[%clk 0:00:49.9]}
23... Bc2 {[%clk 0:02:31.8]} 24. b4 {[%clk 0:00:45.3]} 24... Bb3 {[%clk
0:02:32.6]} 25. e4 {[%clk 0:00:28.7]} 25... f6 {[%clk 0:02:33.1]} 26. Bd6 {[%clk
0:00:27.8]} 26... Bc4+ {[%clk 0:02:33.6]} 27. Kd2 {[%clk 0:00:27.8]} 27... Kf7
{[%clk 0:02:35.5]} 28. Ra1 {[%clk 0:00:25.2]} 28... g5 {[%clk 0:02:31.6]} 29. g4
{[%clk 0:00:23.8]} 29... h5 {[%clk 0:02:32]} 30. h3 {[%clk 0:00:14.6]} 30... Rh8
{[%clk 0:02:32.7]} 31. Ke3 {[%clk 0:00:11.2]} 31... hxg4 {[%clk 0:02:33.1]} 32.
hxg4 {[%clk 0:00:11.4]} 32... Rh2 {[%clk 0:02:34.2]} 33. Bxh2 {[%clk 0:00:11.5]}
33... Kg7 {[%clk 0:02:29.8]} 34. Ra5 {[%clk 0:00:08.4]} 34... Bb5 {[%clk
0:02:30.9]} 35. Rxb5 {[%clk 0:00:09.3]} 35... axb5 {[%clk 0:02:31.8]} 36. exd5
{[%clk 0:00:11.2]} 36... exd5 {[%clk 0:02:31.5]} 37. f4 {[%clk 0:00:12.1]} 37...
Kg6 {[%clk 0:02:30.4]} 38. fxg5 {[%clk 0:00:11.6]} 38... fxg5 {[%clk 0:02:31.8]}
39. Be5 {[%clk 0:00:09.9]} 39... Kf7 {[%clk 0:02:33]} 40. Kf3 {[%clk 0:00:07.7]}
40... Kg6 {[%clk 0:02:32.6]} 41. Bf4 {[%clk 0:00:08.7]} 41... Kf6 {[%clk
0:02:26.1]} 42. Bxg5+ {[%clk 0:00:09.5]} 42... Kxg5 {[%clk 0:02:28]} 43. Kg3
{[%clk 0:00:11.1]} 43... Kg6 {[%clk 0:02:29]} 44. Kf4 {[%clk 0:00:13]} 44... Kf6
{[%clk 0:02:30.3]} 45. g5+ {[%clk 0:00:13.8]} 45... Kg6 {[%clk 0:02:31.9]} 46.
Kg4 {[%clk 0:00:15.2]} 46... Kg7 {[%clk 0:02:32.2]} 47. Kf5 {[%clk 0:00:17.1]}
47... Kf7 {[%clk 0:02:33.7]} 48. g6+ {[%clk 0:00:18.4]} 48... Kg7 {[%clk
0:02:35.4]} 49. Kg5 {[%clk 0:00:19.8]} 49... Kg8 {[%clk 0:02:35.5]} 50. Kf6
{[%clk 0:00:21.1]} 50... Kf8 {[%clk 0:02:37.1]} 51. g7+ {[%clk 0:00:22.4]} 51...
Kg8 {[%clk 0:02:38.8]} 52. Kg6 {[%clk 0:00:24]} 52... c5 {[%clk 0:02:40.3]} 53.
dxc5 {[%clk 0:00:21.5]} 53... d4 {[%clk 0:02:42.2]} 54. c6 {[%clk 0:00:21.8]}
54... dxc3 {[%clk 0:02:43.6]} 55. c7 {[%clk 0:00:22.9]} 55... c2 {[%clk
0:02:45.5]} 56. c8=Q# {[%clk 0:00:24.2]} 1-0

[Event "*** Titled Tuesday Blitz"]
[Site "Chess.com"]
[Date "2019.12.03"]
[Round "3"]
[White "masrahi"]
[Black "Manukyan_Artak"]
[Result "0-1"]
[WhiteElo "1956"]
[BlackElo "2337"]
[TimeControl "180+2"]
[EndTime "13:36:46 PST"]
[Termination "Manukyan_Artak won by resignation"]

1. c4 {[%clk 0:03:01.9]} 1... g6 {[%clk 0:02:57.8]} 2. Nc3 {[%clk 0:03:02.3]}
2... c5 {[%clk 0:02:57.4]} 3. g3 {[%clk 0:03:03.6]} 3... h5 {[%clk 0:02:57.9]}
4. h4 {[%clk 0:03:03.1]} 4... Nh6 {[%clk 0:02:58.7]} 5. Bg2 {[%clk 0:03:03.6]}
5... Nf5 {[%clk 0:02:59.8]} 6. Nf3 {[%clk 0:03:03.6]} 6... Nc6 {[%clk
0:03:00.3]} 7. d3 {[%clk 0:03:02.8]} 7... d6 {[%clk 0:02:59.1]} 8. O-O {[%clk
0:03:02.4]} 8... Bg7 {[%clk 0:02:52.9]} 9. Bg5 {[%clk 0:03:01.9]} 9... O-O
{[%clk 0:02:51.5]} 10. Nd5 {[%clk 0:02:59.9]} 10... Be6 {[%clk 0:02:46]} 11. Nc3
{[%clk 0:02:56.2]} 11... Qd7 {[%clk 0:02:40.9]} 12. Rb1 {[%clk 0:02:48.4]} 12...
a6 {[%clk 0:02:36.7]} 13. a3 {[%clk 0:02:49]} 13... Rfb8 {[%clk 0:02:31.7]} 14.
Na4 {[%clk 0:02:48.9]} 14... b5 {[%clk 0:02:28.1]} 15. cxb5 {[%clk 0:02:48.9]}
15... axb5 {[%clk 0:02:30]} 16. Nc3 {[%clk 0:02:50.3]} 16... b4 {[%clk 0:02:30]}
17. axb4 {[%clk 0:02:47.4]} 17... Rxb4 {[%clk 0:02:30.9]} 18. Nd2 {[%clk
0:02:29.9]} 18... Rab8 {[%clk 0:02:28.8]} 19. Qc1 {[%clk 0:02:11.6]} 19... Ncd4
{[%clk 0:02:26]} 20. Re1 {[%clk 0:02:11.7]} 20... Nb3 {[%clk 0:02:17.2]} 21.
Nxb3 {[%clk 0:02:11.1]} 21... Rxb3 {[%clk 0:02:19.1]} 22. Nd5 {[%clk 0:01:49]}
22... Rxb2 {[%clk 0:02:06.6]} 23. Rxb2 {[%clk 0:01:46.4]} 23... Rxb2 {[%clk
0:02:07.2]} 24. Bf6 {[%clk 0:00:52.2]} 24... Rb8 {[%clk 0:01:50.1]} 25. Bxg7
{[%clk 0:00:52.5]} 25... Kxg7 {[%clk 0:01:51.6]} 26. Qc3+ {[%clk 0:00:53.2]}
26... f6 {[%clk 0:01:50.4]} 27. Nf4 {[%clk 0:00:52.9]} 27... Bf7 {[%clk
0:01:45.3]} 28. Ra1 {[%clk 0:00:42.4]} 28... Nd4 {[%clk 0:01:43.6]} 29. e3
{[%clk 0:00:36.3]} 29... Nb3 {[%clk 0:01:25.9]} 30. Rb1 {[%clk 0:00:31]} 30...
Qc7 {[%clk 0:01:19.3]} 31. Nd5 {[%clk 0:00:26.8]} 31... Bxd5 {[%clk 0:01:19]}
32. Bxd5 {[%clk 0:00:24.7]} 32... Nd4 {[%clk 0:01:17.5]} 33. Qc1 {[%clk
0:00:21]} 33... Ne2+ {[%clk 0:01:18.2]} 0-1

[Event "*** Titled Tuesday Blitz"]
[Site "Chess.com"]
[Date "2019.12.03"]
[Round "3"]
[White "Glufs"]
[Black "riconaipe"]
[Result "0-1"]
[WhiteElo "2356"]
[BlackElo "2600"]
[TimeControl "180+2"]
[EndTime "13:36:59 PST"]
[Termination "riconaipe won on time"]

1. Nf3 {[%clk 0:03:01.9]} 1... d5 {[%clk 0:03:00.1]} 2. g3 {[%clk 0:03:02.3]}
2... c6 {[%clk 0:03:01.4]} 3. Bg2 {[%clk 0:03:02.9]} 3... Nf6 {[%clk 0:03:03.3]}
4. c4 {[%clk 0:03:02.8]} 4... Bg4 {[%clk 0:03:04.5]} 5. Ne5 {[%clk 0:02:50.5]}
5... Bh5 {[%clk 0:03:05]} 6. cxd5 {[%clk 0:02:43.7]} 6... cxd5 {[%clk
0:03:05.2]} 7. Nc3 {[%clk 0:02:43.3]} 7... e6 {[%clk 0:03:05.6]} 8. Qa4+ {[%clk
0:02:40]} 8... Nbd7 {[%clk 0:03:05.3]} 9. g4 {[%clk 0:02:37.8]} 9... Bg6 {[%clk
0:03:04.9]} 10. h4 {[%clk 0:02:38.5]} 10... b5 {[%clk 0:01:44.5]} 11. Qxb5
{[%clk 0:02:11.6]} 11... Rb8 {[%clk 0:01:43.2]} 12. Qa4 {[%clk 0:02:09.9]} 12...
Rb4 {[%clk 0:01:41.3]} 13. Nc6 {[%clk 0:01:36.7]} 13... Rxa4 {[%clk 0:01:39]}
14. Nxd8 {[%clk 0:01:37.3]} 14... Rxg4 {[%clk 0:01:39.9]} 15. Bf3 {[%clk
0:01:30.8]} 15... Kxd8 {[%clk 0:01:39.7]} 16. Bxg4 {[%clk 0:01:25.7]} 16... Nxg4
{[%clk 0:01:40.1]} 17. h5 {[%clk 0:01:07.5]} 17... Bf5 {[%clk 0:01:40.5]} 18. d3
{[%clk 0:01:04.1]} 18... d4 {[%clk 0:01:36.2]} 19. Ne4 {[%clk 0:00:57.7]} 19...
Bxe4 {[%clk 0:01:34.8]} 20. dxe4 {[%clk 0:00:58.5]} 20... Bb4+ {[%clk
0:01:36.5]} 21. Kf1 {[%clk 0:00:57]} 21... Ke7 {[%clk 0:01:36.4]} 22. Kg2 {[%clk
0:00:56.5]} 22... Rc8 {[%clk 0:01:36]} 23. Bg5+ {[%clk 0:00:56.3]} 23... f6
{[%clk 0:01:37.1]} 24. Bf4 {[%clk 0:00:54.2]} 24... e5 {[%clk 0:01:37.4]} 25.
Bg3 {[%clk 0:00:51.1]} 25... Rc2 {[%clk 0:01:37.5]} 26. Kf3 {[%clk 0:00:40.4]}
26... Nh6 {[%clk 0:01:38.6]} 27. Rab1 {[%clk 0:00:37.9]} 27... Nf7 {[%clk
0:01:38.1]} 28. Bh4 {[%clk 0:00:34.4]} 28... Bd2 {[%clk 0:01:23]} 29. Rhg1
{[%clk 0:00:27]} 29... Bg5 {[%clk 0:01:23.2]} 30. Bg3 {[%clk 0:00:17.2]} 30...
Nc5 {[%clk 0:01:20.1]} 31. Bh2 {[%clk 0:00:15.9]} 31... Ne6 {[%clk 0:01:19.7]}
32. a3 {[%clk 0:00:12.2]} 32... Bf4 {[%clk 0:01:16.2]} 33. Bxf4 {[%clk
0:00:12.2]} 33... exf4 {[%clk 0:01:17.5]} 34. Rgc1 {[%clk 0:00:11.9]} 34...
Nfg5+ {[%clk 0:01:11.2]} 35. Kg2 {[%clk 0:00:12.1]} 35... Rxe2 {[%clk
0:01:12.2]} 0-1

[Event "*** Titled Tuesday Blitz"]
[Site "Chess.com"]
[Date "2019.12.03"]
[Round "3"]
[White "petincash"]
[Black "Misi_95"]
[Result "1-0"]
[WhiteElo "2432"]
[BlackElo "2676"]
[TimeControl "180+2"]
[EndTime "13:37:01 PST"]
[Termination "petincash won by resignation"]

1. e4 {[%clk 0:03:01.2]} 1... g6 {[%clk 0:03:00.4]} 2. Nc3 {[%clk 0:02:58.7]}
2... Bg7 {[%clk 0:03:00.5]} 3. h4 {[%clk 0:02:59.5]} 3... c6 {[%clk 0:02:59.1]}
4. h5 {[%clk 0:02:59.7]} 4... d5 {[%clk 0:02:59.9]} 5. exd5 {[%clk 0:02:28.1]}
5... cxd5 {[%clk 0:02:59.5]} 6. d4 {[%clk 0:02:26.1]} 6... Nc6 {[%clk
0:03:00.4]} 7. Bb5 {[%clk 0:02:26.5]} 7... Bd7 {[%clk 0:02:54.3]} 8. Bxc6 {[%clk
0:02:22.7]} 8... bxc6 {[%clk 0:02:56.2]} 9. h6 {[%clk 0:02:23.1]} 9... Bf6
{[%clk 0:02:57.1]} 10. Nf3 {[%clk 0:02:22.8]} 10... Bg4 {[%clk 0:02:57.5]} 11.
Be3 {[%clk 0:01:56.4]} 11... Qc7 {[%clk 0:02:56.8]} 12. Qd2 {[%clk 0:01:45.2]}
12... Bxf3 {[%clk 0:02:54.5]} 13. gxf3 {[%clk 0:01:47.1]} 13... e6 {[%clk
0:02:55.3]} 14. O-O-O {[%clk 0:01:43.1]} 14... Ne7 {[%clk 0:02:55.9]} 15. Bf4
{[%clk 0:01:32.5]} 15... Qd8 {[%clk 0:02:54.3]} 16. Na4 {[%clk 0:01:26.3]} 16...
Nf5 {[%clk 0:02:54.6]} 17. Be5 {[%clk 0:01:22.8]} 17... Bxe5 {[%clk 0:02:54.4]}
18. dxe5 {[%clk 0:01:24.2]} 18... O-O {[%clk 0:02:54.6]} 19. Nc5 {[%clk
0:01:20.8]} 19... Rb8 {[%clk 0:02:55.6]} 20. f4 {[%clk 0:00:49.5]} 20... Qb6
{[%clk 0:02:53.7]} 21. Qc3 {[%clk 0:00:47.2]} 21... Rfd8 {[%clk 0:02:52.7]} 22.
Qa3 {[%clk 0:00:39.9]} 22... a5 {[%clk 0:02:51.3]} 23. Rd3 {[%clk 0:00:39.8]}
23... Qb4 {[%clk 0:02:50.3]} 24. Rf3 {[%clk 0:00:09.8]} 24... Nd4 {[%clk
0:02:46.6]} 25. Re3 {[%clk 0:00:10.3]} 25... Nf5 {[%clk 0:02:45.3]} 26. Rf3
{[%clk 0:00:11.3]} 26... Rb6 {[%clk 0:02:46]} 27. Qxb4 {[%clk 0:00:10.3]} 27...
Rxb4 {[%clk 0:02:46.8]} 28. Nd3 {[%clk 0:00:11.4]} 28... Re4 {[%clk 0:02:45.5]}
29. Re1 {[%clk 0:00:10.2]} 29... Nxh6 {[%clk 0:02:44]} 30. Rh3 {[%clk
0:00:08.6]} 30... Nf5 {[%clk 0:02:44.5]} 31. Rxe4 {[%clk 0:00:09.2]} 31... dxe4
{[%clk 0:02:45.6]} 32. Nc5 {[%clk 0:00:10.8]} 32... Rd4 {[%clk 0:02:46]} 33. c3
{[%clk 0:00:10.9]} 33... Rc4 {[%clk 0:02:47]} 34. Nd7 {[%clk 0:00:11.8]} 34...
h5 {[%clk 0:02:45.8]} 35. Kd2 {[%clk 0:00:09.7]} 35... a4 {[%clk 0:02:32.7]} 36.
b3 {[%clk 0:00:07.9]} 36... axb3 {[%clk 0:02:24.1]} 37. axb3 {[%clk 0:00:09.8]}
37... e3+ {[%clk 0:02:18.7]} 38. fxe3 {[%clk 0:00:11.2]} 38... Re4 {[%clk
0:02:19.6]} 39. Kd3 {[%clk 0:00:11.3]} 39... Rxe3+ {[%clk 0:02:18.2]} 40. Rxe3
{[%clk 0:00:12.2]} 40... Nxe3 {[%clk 0:02:19.9]} 41. Kxe3 {[%clk 0:00:13.7]}
41... Kg7 {[%clk 0:02:18.5]} 42. b4 {[%clk 0:00:12.9]} 42... Kh6 {[%clk
0:02:18]} 43. Nb8 {[%clk 0:00:13.3]} 43... g5 {[%clk 0:02:19.9]} 44. Nxc6 {[%clk
0:00:13]} 44... h4 {[%clk 0:02:20.7]} 45. fxg5+ {[%clk 0:00:13.3]} 45... Kxg5
{[%clk 0:02:21.5]} 46. Kf3 {[%clk 0:00:14.8]} 46... h3 {[%clk 0:02:20.7]} 47. b5
{[%clk 0:00:15.6]} 47... h2 {[%clk 0:02:21.6]} 48. Kg2 {[%clk 0:00:16.4]} 48...
Kf4 {[%clk 0:02:23.5]} 49. b6 {[%clk 0:00:16.6]} 49... Ke4 {[%clk 0:02:25.4]}
50. b7 {[%clk 0:00:17.6]} 50... Kd5 {[%clk 0:02:27.3]} 51. b8=Q {[%clk
0:00:18.3]} 51... Kxc6 {[%clk 0:02:29.2]} 52. Qe8+ {[%clk 0:00:14.1]} 52... Kd5
{[%clk 0:02:31.1]} 53. Qxf7 {[%clk 0:00:14.5]} 53... Kxe5 {[%clk 0:02:33]} 54.
Qf3 {[%clk 0:00:14]} 54... Kd6 {[%clk 0:02:33.8]} 55. Kxh2 {[%clk 0:00:14.8]}
55... e5 {[%clk 0:02:34.6]} 56. Qe4 {[%clk 0:00:15.7]} 56... Kc5 {[%clk
0:02:36.5]} 57. Kg2 {[%clk 0:00:16.4]} 57... Kd6 {[%clk 0:02:36.8]} 1-0